Workbook

Sheet INTRODUCTORY PAGE

Sheet PARABOLA
C1: PARABOLIC MIRROR and Hero's law | I1: dx | J1: 1 | L1: REAL FOCUS | M1: =1/4/kapa -> 5 | N1: When the optical focus is set on the parabola focus
C2: PARABOLIC MIRROR | I2: Kapa | J2: 0.05 | L2: estparab | M2: =M1 -> 5 | N2: then the "ray" that passes through the focus is a reflected ray.
C3: Only when the value of focus is equal to REAL FOCUS | I3: focus | J3: 5 | K3: xfocus | L3: 0 | M3: calculation of the PERPENDICULAR
A4: PARABOLA | C4: the total length is a constant | I4: xinitial | J4: =-25+AK4 -> -12 | N4: =xinitial -> -12 | AK4: 13
A5: x | B5: y | C5: and the angles with the perpendicular are equal | I5: yinitial | J5: 25 | M5: DY/DX = | N5: =2*kapa*xinitial -> -1.2 | O5: -1/DY/DX | P5: =-1/N5 -> 0.8333333333
A6: -20 | B6: =kapa*A6^2 -> 20 | F6: =xinitial -> -12 | G6: =yinitial -> 25 | I6: yfinal | J6: =kapa*xinitial^2 -> 7.2 | N6: point of perpendicular on y axis = | Q6: =yfinal-P5*xinitial -> 17.2
A7: =A6+dx -> -19 | B7: 18.05 | F7: =xfinal -> -12 | G7: =yfinal -> 7.2 | I7: xfinal | J7: =xinitial -> -12 | L7: TO DRAW FOCUS | Q7: Draw Perpendicular | T7: draw rays
A8: -18 | B8: 16.2 | F8: =xfocus -> 0 | G8: =focus -> 5 | I8: TOTAL LENGTH | J8: =(yinitial-yfinal)+SQRT((xfocus-xfinal)^2+(focus-yfinal)^2) -> 30 | L8: =xfocus -> 0 | M8: =focus -> 5 | Q8: =xinitial -> -12 | R8: =yfinal -> 7.2 | T8: =xinitial -> -12 | U8: =yinitial -> 25
A9: -17 | B9: 14.45 | O9: change | Q9: =0 -> 0 | R9: =Q6 -> 17.2 | T9: =xfinal -> -12 | U9: =yfinal -> 7.2
A10: -16 | B10: 12.8 | N10: focus | O10: xinitial | T10: =0 -> 0 | U10: =focus -> 5
A11: -15 | B11: 11.25
A12: -14 | B12: 9.8 | Q12: Calculation of angles
A13: -13 | B13: 8.45 | Q13: Metro 1 | R13: Metro2 | S13: Perpendicular
A14: -12 | B14: 7.2 | Q14: =ABS(yinitial-yfinal) -> 17.8 | R14: =SQRT((xfinal-xfocus)^2+(yfinal-focus)^2) -> 12.2 | S14: =SQRT((Q6-yfinal)^2+xfinal^2) -> 15.62049935
A15: -11 | B15: 6.05 | Q15: External products
A16: -10 | B16: 5 | Q16: =(-(xfinal-xfocus)*(yinitial-yfinal))/(Q14*S14) -> 0.7682212796 | R16: =-((xfocus-xfinal)*(focus-yfinal)-(Q6-yfinal)*(xfocus-xfinal))/(R14*S14) -> 0.7682212796
A17: -9 | B17: 4.05 | Q17: angles
A18: -8 | B18: 3.2 | Q18: =DEGREES(ASIN(Q16)) -> 50.19442891 | R18: =DEGREES(ASIN(R16)) -> 50.19442891
A19: -7 | B19: 2.45
A20: -6 | B20: 1.8 | T20: t1 | U20: time froma parabola to focus
A21: -5 | B21: 1.25 | R21: x | S21: y parabola | T21: dy1 | U21: dsfx
A22: -4 | B22: 0.8 | R22: =-20 -> -20 | S22: =kapa*R22^2 -> 20 | T22: =yinitial-S22 -> 5 | U22: =SQRT((R22-0)^2+(S22-1/(4*kapa))^2) -> 25 | V22: =IF(timMMM1<=T22,R22,R22+(timMMM1-T22)*COS(ATAN((focus-S22)/(0-R22)))) -> -13.6 | W22: =IF(timMMM1<=T22,yinitial-timMMM1,S22+(timMMM1-T22)*SIN(ATAN((focus-S22)/(0-R22)))) -> 15.2 | Y22: =yinitial-T22 -> 20
A23: -3 | B23: 0.45 | O23: 261 | R23: =R22+dx -> -19 | S23: 18.05 | T23: 6.95 | U23: 23.05 | V23: -14.01301518 | W23: 14.62472885
A24: -2 | B24: 0.2 | R24: -18 | S24: 16.2 | T24: 8.8 | U24: 21.2 | V24: -14.43396226 | W24: 13.98113208
A25: -1 | B25: 0.05 | R25: -17 | S25: 14.45 | T25: 10.55 | U25: 19.45 | V25: -14.85861183 | W25: 13.2596401
A26: 0 | B26: 0 | R26: -16 | S26: 12.8 | T26: 12.2 | U26: 17.8 | V26: -15.28089888 | W26: 12.4494382
A27: 1 | B27: 0.05 | R27: -15 | S27: 11.25 | T27: 13.75 | U27: 16.25 | V27: -15 | W27: 12
A28: 2 | B28: 0.2 | N28: time | O28: =(P28-1)/10 -> 13 | P28: 131 | R28: -14 | S28: 9.8 | T28: 15.2 | U28: 14.8 | V28: -14 | W28: 12
A29: 3 | B29: 0.45 | R29: -13 | S29: 8.45 | T29: 16.55 | U29: 13.45 | V29: -13 | W29: 12
A30: 4 | B30: 0.8 | R30: -12 | S30: 7.2 | T30: 17.8 | U30: 12.2 | V30: -12 | W30: 12
A31: 5 | B31: 1.25 | R31: -11 | S31: 6.05 | T31: 18.95 | U31: 11.05 | V31: -11 | W31: 12
A32: 6 | B32: 1.8 | R32: -10 | S32: 5 | T32: 20 | U32: 10 | V32: -10 | W32: 12
A33: 7 | B33: 2.45 | R33: -9 | S33: 4.05 | T33: 20.95 | U33: 9.05 | V33: -9 | W33: 12
A34: 8 | B34: 3.2 | R34: -8 | S34: 3.2 | T34: 21.8 | U34: 8.2 | V34: -8 | W34: 12
A35: 9 | B35: 4.05 | R35: -7 | S35: 2.45 | T35: 22.55 | U35: 7.45 | V35: -7 | W35: 12
A36: 10 | B36: 5 | R36: -6 | S36: 1.8 | T36: 23.2 | U36: 6.8 | V36: -6 | W36: 12
A37: 11 | B37: 6.05 | R37: -5 | S37: 1.25 | T37: 23.75 | U37: 6.25 | V37: -5 | W37: 12
A38: 12 | B38: 7.2 | R38: -4 | S38: 0.8 | T38: 24.2 | U38: 5.8 | V38: -4 | W38: 12
A39: 13 | B39: 8.45 | R39: -3 | S39: 0.45 | T39: 24.55 | U39: 5.45 | V39: -3 | W39: 12
A40: 14 | B40: 9.8 | R40: -2 | S40: 0.2 | T40: 24.8 | U40: 5.2 | V40: -2 | W40: 12
A41: 15 | B41: 11.25 | R41: -1 | S41: 0.05 | T41: 24.95 | U41: 5.05 | V41: -1 | W41: 12
A42: 16 | B42: 12.8 | R42: 0 | S42: 0 | T42: 25 | U42: 5 | V42: =IF(timMMM1<=T42,R42,R42+(timMMM1-T42)*COS(pi/2)) -> 0 | W42: =IF(timMMM1<=T42,yinitial-timMMM1,S42+(timMMM1-T42)*SIN(pi/2)) -> 12
A43: 17 | B43: 14.45 | R43: 1 | S43: 0.05 | T43: 24.95 | U43: 5.05 | V43: =IF(timMMM1<=T43,R43,R43-(timMMM1-T43)*COS(ATAN((focus-S43)/(0-R43)))) -> 1 | W43: =IF(timMMM1<=T43,yinitial-timMMM1,S43-(timMMM1-T43)*SIN(ATAN((focus-S43)/(0-R43)))) -> 12
A44: 18 | B44: 16.2 | R44: 2 | S44: 0.2 | T44: 24.8 | U44: 5.2 | V44: 2 | W44: 12
A45: 19 | B45: 18.05 | R45: 3 | S45: 0.45 | T45: 24.55 | U45: 5.45 | V45: 3 | W45: 12
A46: 20 | B46: 20 | R46: 4 | S46: 0.8 | T46: 24.2 | U46: 5.8 | V46: 4 | W46: 12
R47: 5 | S47: 1.25 | T47: 23.75 | U47: 6.25 | V47: 5 | W47: 12
R48: 6 | S48: 1.8 | T48: 23.2 | U48: 6.8 | V48: 6 | W48: 12
R49: 7 | S49: 2.45 | T49: 22.55 | U49: 7.45 | V49: 7 | W49: 12
R50: 8 | S50: 3.2 | T50: 21.8 | U50: 8.2 | V50: 8 | W50: 12
R51: 9 | S51: 4.05 | T51: 20.95 | U51: 9.05 | V51: 9 | W51: 12
R52: 10 | S52: 5 | T52: 20 | U52: 10 | V52: 10 | W52: 12
R53: 11 | S53: 6.05 | T53: 18.95 | U53: 11.05 | V53: 11 | W53: 12
R54: 12 | S54: 7.2 | T54: 17.8 | U54: 12.2 | V54: 12 | W54: 12
R55: 13 | S55: 8.45 | T55: 16.55 | U55: 13.45 | V55: 13 | W55: 12
R56: 14 | S56: 9.8 | T56: 15.2 | U56: 14.8 | V56: 14 | W56: 12
R57: 15 | S57: 11.25 | T57: 13.75 | U57: 16.25 | V57: 15 | W57: 12
R58: 16 | S58: 12.8 | T58: 12.2 | U58: 17.8 | V58: 15.28089888 | W58: 12.4494382
R59: 17 | S59: 14.45 | T59: 10.55 | U59: 19.45 | V59: 14.85861183 | W59: 13.2596401
R60: 18 | S60: 16.2 | T60: 8.8 | U60: 21.2 | V60: 14.43396226 | W60: 13.98113208
R61: 19 | S61: 18.05 | T61: 6.95 | U61: 23.05 | V61: 14.01301518 | W61: 14.62472885
R62: 20 | S62: 20 | T62: 5 | U62: 25 | V62: 13.6 | W62: 15.2

Sheet ELLIPSE
H1: ESTIA1 | I1: =-CE -> -25
H2: ESTIA2 | I2: =CE -> 25 | M2: - | N2: =ALPHA/50 -> 0.58
H3: ALPHA | I3: 29
H4: CE | I4: 25 | M4: 38
A5: X | B5: Y | C5: y2 | H5: BETA | I5: =SQRT(ALPHA^2-CE^2) -> 14.69693846 | M5: to right focus
A6: =-ALPHA -> -29 | B6: =BETA*SQRT(1-A6^2/ALPHA^2) -> 0 | C6: =-B6 -> 0 | H6: Point on ellipse | N6: 42 | Q6: The following are for the calculation of the angles
A7: =A6+DEX -> -28.42 | B7: 2.924653826 | C7: =-B7 -> -2.924653826 | H7: xarxiko | I7: =-ALPHA+N6 -> 13 | K7: dy/dx | L7: =-(xarxiko/yarxiko)*(BETA/ALPHA)^2 -> -0.254148525 | Q7: metro1 | R7: metro2
A8: -27.84 | B8: 4.115142768 | C8: -4.115142768 | H8: yarxiko | I8: =BETA*SQRT(1-(xarxiko/ALPHA)^2) -> 13.13752375 | K8: perpendicular | L8: =-1/L7 -> 3.934707078 | M8: determine point on ellipse | Q8: =SQRT((xarxiko-ESTIA1)^2+yarxiko^2) -> 40.20689655 | R8: =SQRT((xarxiko-ESTIA2)^2+yarxiko^2) -> 17.79310345
A9: -27.26 | B9: 5.01421978 | C9: -5.01421978 | D9: total Length | F9: =SQRT((xarxiko-ESTIA1)^2+yarxiko^2)+SQRT((xarxiko-ESTIA2)^2+yarxiko^2) -> 58 | I9: =ESTIA1 -> -25 | J9: 0 | K9: perp-x axis | L9: =IF(L7<>0,xarxiko+yarxiko*L7,0) -> 9.661117717 | M9: (xarxiko) | R9: metro perp
A10: -26.68 | B10: 5.76 | C10: -5.76 | I10: =ESTIA2 -> 25 | J10: 0 | K10: tangent | L10: =IF(L7<>0,xarxiko-yarxiko/L7,0) -> 64.69230769 | R10: =SQRT((xarxiko-perp)^2+yarxiko^2) -> 13.55517116
A11: -26.1 | B11: 6.406246951 | C11: -6.406246951 | H11: line from one focus to the other | K11: perpendicular | Q11: exoteriko1 | R11: exoteriko2
A12: -25.52 | B12: 6.980658995 | C12: -6.980658995 | E12: Angles with perpendicular | I12: =ESTIA1 -> -25 | J12: 0 | K12: =xarxiko -> 13 | L12: =yarxiko -> 13.13752375 | Q12: =((xarxiko-ESTIA1)*yarxiko-(xarxiko-perp)*yarxiko)/Q8/R10 -> 0.8355078202 | R12: =((xarxiko-ESTIA2)*yarxiko-(xarxiko-perp)*yarxiko)/R8/R10 -> -0.8355078202
A13: -24.94 | B13: 7.499759996 | C13: -7.499759996 | E13: =DEGREES(ASIN(Q12)) -> 56.66875299 | F13: =-DEGREES(ASIN(R12)) -> 56.66875299 | I13: =xarxiko -> 13 | J13: =yarxiko -> 13.13752375 | K13: =L9 -> 9.661117717 | L13: 0
A14: -24.36 | B14: 7.974358908 | C14: -7.974358908 | E14: angle 1 | F14: angle 2 | I14: =ESTIA2 -> 25 | J14: 0 | K14: tangent
A15: -23.78 | B15: 8.411991441 | C15: -8.411991441 | E15: Left ray | F15: Right Ray | K15: =xarxiko -> 13 | L15: =yarxiko -> 13.13752375
A16: -23.2 | B16: 8.818163074 | C16: -8.818163074 | K16: =L10 -> 64.69230769 | L16: 0
A17: -22.62 | B17: 9.197043003 | C17: -9.197043003
A18: -22.04 | B18: 9.551879396 | C18: -9.551879396
A19: -21.46 | B19: 9.885261757 | C19: -9.885261757
A20: -20.88 | B20: 10.19929409 | C20: -10.19929409
A21: -20.3 | B21: 10.49571341 | C21: -10.49571341
A22: -19.72 | B22: 10.77597327 | C22: -10.77597327
A23: -19.14 | B23: 11.04130427 | C23: -11.04130427 | M23: t | N23: =(O23-1)/10 -> 6.6 | O23: 67
A24: -18.56 | B24: 11.29275874 | C24: -11.29275874 | Q24: dtheta | R24: 10
A25: -17.98 | B25: 11.53124451 | C25: -11.53124451 | Q25: points of a wave | S25: points of intersection
A26: -17.4 | B26: 11.75755077 | C26: -11.75755077 | Q26: angle theta | S26: x point of cut | T26: x - | U26: y+ | V26: y- | W26: Ds+ | X26: Ds- | Y26: Ds+2 | Z26: Ds-2 | AA26: Klisi +2 | AB26: klisi -2 | AC26: x+ | AD26: y+
A27: -16.82 | B27: 11.97236819 | C27: -11.97236819 | Q27: 0 | R27: =RADIANS(Q27) -> 0 | S27: =ALPHA*(-CE*ALPHA*SIN($R27)^2+BETA*BETA*COS($R27))/(ALPHA^2*SIN($R27)^2+BETA^2*COS($R27)^2) -> 29 | T27: =ALPHA*(CE*ALPHA*SIN($R27)^2-BETA*BETA*COS($R27))/(ALPHA^2*SIN($R27)^2+BETA^2*COS($R27)^2) -> -29 | U27: =(BETA*SQRT(1-S27^2/ALPHA^2)) -> 0 | V27: =BETA*SQRT(1-T27^2/ALPHA^2) -> 0 | W27: =SQRT((S27+CE)^2+U27^2) -> 54 | X27: =SQRT((T27+CE)^2+V27^2) -> 4 | Y27: =SQRT((S27-CE)^2+U27^2) -> 4 | Z27: =SQRT((T27-CE)^2+V27^2) -> 54 | AA27: =ATAN((U27-0)/(CE-S27)) -> 0 | AB27: =ATAN((V27-0)/(CE-T27)) -> 0 | AC27: =IF(t<W27,-CE+COS(R27)*t,S27-COS(AA27)*(t-W27)) -> -18.4 | AD27: =IF(t<W27,SIN(R27)*t,U27+SIN(AA27)*(t-W27)) -> 0 | AE27: =IF(t<X27,-CE-COS(R27)*t,T27+COS(AB27)*(t-X27)) -> -26.4 | AF27: =IF(t<X27,SIN(R27)*t,V27-SIGN(AB27)*SIN(AB27)*(t-X27)) -> 0
A28: -16.24 | B28: 12.17630486 | C28: -12.17630486 | Q28: 2 | R28: 0.03490658504 | S28: 28.76241335 | T28: =ALPHA*(-CE*ALPHA*SIN($R28)^2-BETA*BETA*COS($R28))/(ALPHA^2*SIN($R28)^2+BETA^2*COS($R28)^2) -> -28.99869104 | U28: 1.877424844 | V28: 0.139637368 | W28: 53.79518392 | X28: 4.001128416 | Y28: =SQRT((T28-CE)^2+V28^2) -> 53.99887158 | Z28: =SQRT((T28-CE)^2+V28^2) -> 53.99887158 | AA28: -0.462843157 | AB28: 0.002585934104 | AC28: =IF(t<W28,-CE+COS(R28)*t,S28-COS(AA28)*(t-W28)) -> -18.40402054 | AD28: =IF(t<W28,SIN(R28)*t,U28+SIN(AA28)*(t-W28)) -> 0.2303366782 | AE28: -26.39982814 | AF28: 0.1329168648
A29: -15.66 | B29: 12.36989895 | C29: -12.36989895 | Q29: 5 | R29: 0.0872664626 | S29: 27.54483274 | T29: -28.99181122 | U29: 4.597077192 | V29: 0.3492382288 | W29: 52.74554547 | X29: 4.007059292 | Y29: =SQRT((T29-CE)^2+V29^2) -> 53.99294071 | Z29: 53.99294071 | AA29: -1.065211583 | AB29: 0.006468265286 | AC29: =IF(t<W29,-CE+COS(R29)*t,S29-COS(AA29)*(t-W29)) -> -18.42511499 | AD29: =IF(t<W29,SIN(R29)*t,U29+SIN(AA29)*(t-W29)) -> 0.5752279021 | AE29: -26.39892476 | AF29: 0.3324665174
A30: -15.08 | B30: 12.55362896 | C30: -12.55362896 | Q30: 7 | R30: 0.1221730476 | S30: 26.21171495 | T30: -28.98393258 | U30: 6.288007934 | V30: 0.4891654129 | W30: 51.596306 | X30: 4.013851221 | Y30: =SQRT((T30-CE)^2+V30^2) -> 53.98614878 | Z30: 53.98614878 | AA30: -1.380427323 | AB30: 0.009061066916 | AC30: =IF(t<W30,-CE+COS(R30)*t,S30-COS(AA30)*(t-W30)) -> -18.4491954 | AD30: =IF(t<W30,SIN(R30)*t,U30+SIN(AA30)*(t-W30)) -> 0.8043376665 | AE30: -26.39788997 | AF30: 0.4657324664
A31: -14.5 | B31: 12.72792206 | C31: -12.72792206 | Q31: =Q27+dtheta -> 10 | R31: 0.1745329252 | S31: 23.56801104 | T31: -28.96713364 | U31: 8.563850746 | V31: 0.6995126966 | W31: 49.3172509 | X31: 4.02833307 | Y31: =SQRT((T31-CE)^2+V31^2) -> 53.97166693 | Z31: 53.97166693 | AA31: 1.405115926 | AB31: 0.01296110204 | AC31: =IF(t<W31,-CE+COS(R31)*t,S31+COS(AA31)*(t-W31)) -> -18.50026883 | AD31: =IF(t<W31,SIN(R31)*t,U31- SIN(AA31)*(t-W31)) -> 1.146077973 | AE31: -26.39568271 | AF31: 0.6661819924
A32: -13.92 | B32: 12.89316098 | C32: -12.89316098 | Q32: =Q31+dtheta -> 20 | R32: 0.3490658504 | S32: 11.85280208 | T32: -28.8667299 | U32: 13.41332301 | V32: 1.407374589 | W32: 39.21793283 | X32: 4.114888015 | Y32: =SQRT((S32-CE)^2+V32^2) -> 13.22231131 | Z32: 53.88511199 | AA32: 0.7954174016 | AB32: 0.02612103034 | AC32: =IF(t<W32,-CE+COS(R32)*t,S32+COS(AA32)*(t-W32)) -> -18.7980287 | AD32: 2.257332946 | AE32: -26.38246568 | AF32: 1.342468285
A33: -13.34 | B33: 13.04968965 | C33: -13.04968965 | Q33: 30 | R33: 0.5235987756 | S33: 0.4527417846 | T33: -28.6931716 | U33: 14.69514732 | V33: 2.132253619 | W33: 29.39029464 | X33: 4.264507239 | Y33: 24.63969138 | Z33: 53.73549276 | AA33: 0.5394241984 | AB33: 0.03969096516 | AC33: -19.28423234 | AD33: 3.3 | AE33: -26.35951824 | AF33: 2.039579995
A34: -12.76 | B34: 13.197818 | C34: -13.197818 | M34: pi | N34: =4*ATAN(1) -> 3.141592654 | Q34: 40 | R34: 0.6981317008 | S34: -8.199566873 | T34: -28.43638176 | U34: 14.09723724 | V34: 2.883466665 | W34: 21.93140787 | X34: 4.485877795 | Y34: 33.32454982 | Z34: 53.5141222 | AA34: 0.4015496882 | AB34: 0.05390845701 | AC34: -19.94410668 | AD34: 4.242398224 | AE34: -26.32533076 | AF34: 2.769552793
A35: -12.18 | B35: 13.33782591 | C35: -13.33782591 | Q35: 50 | R35: 0.872664626 | S35: -14.26227397 | T35: -28.08060967 | U35: 12.79672358 | V35: 3.671327644 | W35: 16.70493623 | X35: 4.792577869 | Y35: 39.43354922 | Z35: 53.20742213 | AA35: 0.3150721458 | AB35: 0.06905516147 | AC35: -20.75760178 | AD35: 5.055893325 | AE35: -26.27749528 | AF35: 3.54661499
A36: -11.6 | B36: 13.46996659 | C36: -13.46996659 | Q36: 60 | R36: 1.047197551 | S36: -18.45454545 | T36: -27.60240964 | U36: 11.33705983 | V36: 4.507505716 | W36: 13.09090909 | X36: 5.204819277 | Y36: 43.68769997 | Z36: 52.79518072 | AA36: 0.2552059072 | AB36: 0.08548128382 | AC36: -21.7 | AD36: 5.715767665 | AE36: -26.21232314 | AF36: 4.388389066
A37: -11.02 | B37: 13.59446946 | C37: -13.59446946 | Q37: 70 | R37: 1.221730476 | S37: -21.38737554 | T37: -26.96738642 | U37: 9.92560413 | V37: 5.405349775 | W37: 10.56260729 | X37: 5.752253083 | Y37: 46.7012464 | Z37: 52.24774692 | AA37: 0.2107934675 | AB37: 0.1036415775 | AC37: -22.74266705 | AD37: 6.201971297 | AE37: -26.1241885 | AF37: 5.317645158
A38: -10.44 | B38: =BETA*SQRT(1-A38^2/ALPHA^2) -> 13.71154258 | C38: -13.71154258 | Q38: 80 | R38: 1.396263402 | S38: -23.47891977 | T38: -26.12497455 | U38: 8.626474645 | V38: 6.380047698 | W38: 8.759551921 | X38: 6.478470218 | Y38: 48.89693928 | Z38: 51.52152978 | AA38: 0.1760995858 | AB38: 0.1241513425 | AC38: -23.85392203 | AD38: 6.49973117 | AE38: -26.00438017 | AF38: 6.364998343
A39: =A38+DEX -> -9.86 | B39: 13.82137475 | C39: -13.82137475 | Q39: 90 | R39: 1.570796327 | S39: -25 | T39: -25 | U39: 7.448275862 | V39: 7.448275862 | W39: 7.448275862 | X39: 7.448275862 | Y39: 50.55172414 | Z39: 50.55172414 | AA39: =pi/2 -> 1.570796327 | AB39: =pi/2 -> 1.570796327
A40: -9.28 | B40: 13.92413732 | C40: -13.92413732 | Q40: 100 | R40: 1.745329252 | S40: -26.12497455 | T40: -23.47891977 | U40: 6.380047698 | V40: 8.626474645 | W40: 6.478470218 | X40: 8.759551921 | Y40: 51.84765267 | Z40: 49.24044808 | AA40: =ATAN((U40-0)/(CE-S40)) -> 0.1241513425 | AB40: =ATAN((V40-0)/(CE-T40)) -> 0.1760995858 | AC40: =IF(t<W40,-CE+COS(R40)*t,S40+COS(AA40)*(t-W40)) -> -26.00438017 | AD40: =IF(t<W40,SIN(R40)*t,U40- SIN(AA40)*(t-W40)) -> 6.364998343 | AE40: =IF(t<X40,-CE-COS(R40)*t,T40+COS(AB40)*(t-X40)) -> -23.85392203 | AF40: =IF(t<X40,SIN(R40)*t,V40-SIGN(AB40)*SIN(AB40)*(t-X40)) -> 6.49973117
A41: -8.7 | B41: 14.01998573 | C41: -14.01998573 | I41: t | Q41: 110 | R41: 1.919862177 | S41: -26.96738642 | T41: -21.38737554 | U41: 5.405349775 | V41: 9.92560413 | W41: 5.752253083 | X41: 10.56260729 | Y41: 52.90677527 | Z41: 47.43739271 | AA41: 0.1036415775 | AB41: 0.2107934675 | AC41: -26.1241885 | AD41: 5.317645158 | AE41: -22.74266705 | AF41: 6.201971297
A42: -8.12 | B42: 14.10906092 | C42: -14.10906092 | Q42: 120 | R42: 2.094395102 | S42: -27.60240964 | T42: -18.45454545 | U42: 4.507505716 | V42: 11.33705983 | W42: 5.204819277 | X42: 13.09090909 | Y42: 53.81024461 | Z42: 44.90909091 | AA42: 0.08548128382 | AB42: 0.2552059072 | AC42: -26.21232314 | AD42: 4.388389066 | AE42: -21.7 | AF42: 5.715767665
A43: -7.54 | B43: 14.19149041 | C43: -14.19149041 | Q43: 130 | R43: 2.268928028 | S43: -28.08060967 | T43: -14.26227397 | U43: 3.671327644 | V43: 12.79672358 | W43: 4.792577869 | X43: 16.70493623 | Y43: 54.60134849 | Z43: 41.29506377 | AA43: 0.06905516147 | AB43: 0.3150721458 | AC43: -26.27749528 | AD43: 3.54661499 | AE43: -20.75760178 | AF43: 5.055893325
A44: -6.96 | B44: 14.26738939 | C44: -14.26738939 | Q44: 140 | R44: 2.443460953 | S44: -28.43638176 | T44: -8.199566873 | U44: 2.883466665 | V44: 14.09723724 | W44: 4.485877795 | X44: 21.93140787 | Y44: 55.26462696 | Z44: 36.06859213 | AA44: 0.05390845701 | AB44: 0.4015496882 | AC44: -26.32533076 | AD44: 2.769552793 | AE44: -19.94410668 | AF44: 4.242398224
A45: -6.38 | B45: 14.33686158 | C45: -14.33686158 | Q45: 150 | R45: 2.617993878 | S45: -28.6931716 | T45: 0.4527417846 | U45: 2.132253619 | V45: 14.69514732 | W45: 4.264507239 | X45: 29.39029464 | Y45: 55.66780067 | Z45: 28.60970536 | AA45: 0.03969096516 | AB45: 0.5394241984 | AC45: -26.35951824 | AD45: 2.039579995 | AE45: -19.28423234 | AF45: 3.3 | AH45: =t -> 6.6
A46: -5.8 | B46: 14.4 | C46: -14.4 | Q46: 160 | R46: 2.792526803 | S46: -28.8667299 | T46: 11.85280208 | U46: 1.407374589 | V46: 13.41332301 | W46: 4.114888015 | X46: 39.21793283 | Y46: 55.51163684 | Z46: 18.78206717 | AA46: 0.02612103034 | AB46: 0.7954174016 | AC46: -26.38246568 | AD46: 1.342468285 | AE46: -18.7980287 | AF46: 2.257332946
A47: -5.22 | B47: 14.45688763 | C47: -14.45688763 | Q47: 170 | R47: 2.967059728 | S47: -28.96713364 | T47: 23.56801104 | U47: 0.6995126966 | V47: 8.563850746 | W47: 4.02833307 | X47: 49.3172509 | Y47: 54.64239245 | Z47: 8.682749102 | AA47: 0.01296110204 | AB47: 1.405115926 | AC47: -26.39568271 | AD47: 0.6661819924 | AE47: -18.50026883 | AF47: 1.146077973
A48: -4.64 | B48: 14.50759801 | C48: -14.50759801 | Q48: 180 | R48: 3.141592654 | S48: -29 | T48: 29 | U48: 0 | V48: 0 | W48: 4 | X48: 54 | Y48: 54 | Z48: 4 | AA48: 0 | AB48: 0 | AC48: -26.4 | AD48: 0 | AE48: =IF(t<X48,-CE-COS(R48)*t,T48-COS(AB48)*(t-X48)) -> -18.4 | AF48: 8.085979802e-16
A49: -4.06 | B49: 14.55219571 | C49: -14.55219571 | Q49: 190 | R49: 3.316125579 | S49: -28.96713364 | T49: 23.56801104 | U49: =SIGN(SIN(R49))* (BETA*SQRT(1-S49^2/ALPHA^2)) -> -0.6995126966 | V49: 8.563850746 | W49: 4.02833307 | X49: 49.3172509 | Y49: 54.64239245 | Z49: 8.682749102 | AA49: -0.01296110204 | AB49: 1.405115926 | AC49: -26.39568271 | AD49: -0.6661819924 | AE49: =IF(t<X49,-CE-COS(R49)*t,T49+COS(AB49)*(t-X49)) -> -18.50026883 | AF49: -1.146077973
A50: -3.48 | B50: 14.59073679 | C50: -14.59073679 | Q50: 200 | R50: 3.490658504 | S50: -28.8667299 | T50: 11.85280208 | U50: -1.407374589 | V50: 13.41332301 | W50: 4.114888015 | X50: 39.21793283 | Y50: 55.51163684 | Z50: 18.78206717 | AA50: -0.02612103034 | AB50: 0.7954174016 | AC50: -26.38246568 | AD50: -1.342468285 | AE50: -18.7980287 | AF50: -2.257332946
A51: -2.9 | B51: 14.62326913 | C51: -14.62326913 | Q51: 210 | R51: 3.665191429 | S51: -28.6931716 | T51: 0.4527417846 | U51: -2.132253619 | V51: 14.69514732 | W51: 4.264507239 | X51: 29.39029464 | Y51: 55.66780067 | Z51: 28.60970536 | AA51: -0.03969096516 | AB51: 0.5394241984 | AC51: -26.35951824 | AD51: -2.039579995 | AE51: -19.28423234 | AF51: -3.3
A52: -2.32 | B52: 14.64983276 | C52: -14.64983276 | Q52: 220 | R52: 3.839724354 | S52: -28.43638176 | T52: -8.199566873 | U52: -2.883466665 | V52: 14.09723724 | W52: 4.485877795 | X52: 21.93140787 | Y52: 55.26462696 | Z52: 36.06859213 | AA52: -0.05390845701 | AB52: 0.4015496882 | AC52: -26.32533076 | AD52: -2.769552793 | AE52: -19.94410668 | AF52: -4.242398224
A53: -1.74 | B53: 14.67046012 | C53: -14.67046012 | Q53: 230 | R53: 4.01425728 | S53: -28.08060967 | T53: -14.26227397 | U53: -3.671327644 | V53: 12.79672358 | W53: 4.792577869 | X53: 16.70493623 | Y53: 54.60134849 | Z53: 41.29506377 | AA53: -0.06905516147 | AB53: 0.3150721458 | AC53: -26.27749528 | AD53: -3.54661499 | AE53: -20.75760178 | AF53: -5.055893325
A54: -1.16 | B54: 14.6851762 | C54: -14.6851762 | Q54: 240 | R54: 4.188790205 | S54: -27.60240964 | T54: -18.45454545 | U54: -4.507505716 | V54: 11.33705983 | W54: 5.204819277 | X54: 13.09090909 | Y54: 53.81024461 | Z54: 44.90909091 | AA54: -0.08548128382 | AB54: 0.2552059072 | AC54: -26.21232314 | AD54: -4.388389066 | AE54: -21.7 | AF54: -5.715767665
A55: -0.58 | B55: 14.69399878 | C55: -14.69399878 | Q55: 250 | R55: 4.36332313 | S55: -26.96738642 | T55: -21.38737554 | U55: -5.405349775 | V55: 9.92560413 | W55: 5.752253083 | X55: 10.56260729 | Y55: 52.90677527 | Z55: 47.43739271 | AA55: -0.1036415775 | AB55: 0.2107934675 | AC55: -26.1241885 | AD55: -5.317645158 | AE55: -22.74266705 | AF55: -6.201971297
A56: -3.574918139e-14 | B56: 14.69693846 | C56: -14.69693846 | Q56: 260 | R56: 4.537856055 | S56: -26.12497455 | T56: -23.47891977 | U56: -6.380047698 | V56: 8.626474645 | W56: 6.478470218 | X56: 8.759551921 | Y56: 51.84765267 | Z56: 49.24044808 | AA56: -0.1241513425 | AB56: 0.1760995858 | AC56: -26.00438017 | AD56: -6.364998343 | AE56: -23.85392203 | AF56: -6.49973117
A57: 0.58 | B57: 14.69399878 | C57: -14.69399878 | Q57: 270 | R57: 4.71238898 | S57: -25 | T57: -25 | U57: -7.448275862 | V57: 7.448275862 | W57: 7.448275862 | X57: 7.448275862 | Y57: 50.55172414 | Z57: 50.55172414 | AA57: =-pi/2 -> -1.570796327 | AB57: =-pi/2 -> -1.570796327
A58: 1.16 | B58: 14.6851762 | C58: -14.6851762 | Q58: 280 | R58: 4.886921906 | S58: -23.47891977 | T58: -26.12497455 | U58: -8.626474645 | V58: 6.380047698 | W58: 8.759551921 | X58: 6.478470218 | Y58: 48.89693928 | Z58: 51.52152978 | AA58: =ATAN((U58-0)/(CE-S58)) -> -0.1760995858 | AB58: =-ATAN((V58-0)/(CE-T58)) -> -0.1241513425 | AC58: =IF(t<W58,-CE+COS(R58)*t,S58+COS(AA58)*(t-W58)) -> -23.85392203 | AD58: =IF(t<W58,SIN(R58)*t,U58- SIN(AA58)*(t-W58)) -> -6.49973117 | AE58: =IF(t<X58,-CE-COS(R58)*t,T58+COS(AB58)*(t-X58)) -> -26.00438017 | AF58: =IF(t<X58,SIN(R58)*t,V58-SIGN(AB58)*SIN(AB58)*(t-X58)) -> 6.364998343
A59: 1.74 | B59: 14.67046012 | C59: -14.67046012 | Q59: 290 | R59: 5.061454831 | S59: -21.38737554 | T59: -26.96738642 | U59: -9.92560413 | V59: 5.405349775 | W59: 10.56260729 | X59: 5.752253083 | Y59: 46.7012464 | Z59: 52.24774692 | AA59: -0.2107934675 | AB59: -0.1036415775 | AC59: -22.74266705 | AD59: -6.201971297 | AE59: -26.1241885 | AF59: 5.317645158
A60: 2.32 | B60: 14.64983276 | C60: -14.64983276 | Q60: 300 | R60: 5.235987756 | S60: -18.45454545 | T60: -27.60240964 | U60: -11.33705983 | V60: 4.507505716 | W60: 13.09090909 | X60: 5.204819277 | Y60: 43.68769997 | Z60: 52.79518072 | AA60: -0.2552059072 | AB60: -0.08548128382 | AC60: -21.7 | AD60: -5.715767665 | AE60: -26.21232314 | AF60: 4.388389066
A61: 2.9 | B61: 14.62326913 | C61: -14.62326913 | Q61: 310 | R61: 5.410520681 | S61: -14.26227397 | T61: -28.08060967 | U61: -12.79672358 | V61: 3.671327644 | W61: 16.70493623 | X61: 4.792577869 | Y61: 39.43354922 | Z61: 53.20742213 | AA61: -0.3150721458 | AB61: -0.06905516147 | AC61: -20.75760178 | AD61: -5.055893325 | AE61: -26.27749528 | AF61: 3.54661499
A62: 3.48 | B62: 14.59073679 | C62: -14.59073679 | Q62: 320 | R62: 5.585053606 | S62: -8.199566873 | T62: -28.43638176 | U62: -14.09723724 | V62: 2.883466665 | W62: 21.93140787 | X62: 4.485877795 | Y62: 33.32454982 | Z62: 53.5141222 | AA62: -0.4015496882 | AB62: -0.05390845701 | AC62: -19.94410668 | AD62: -4.242398224 | AE62: -26.32533076 | AF62: 2.769552793
A63: 4.06 | B63: 14.55219571 | C63: -14.55219571 | Q63: 330 | R63: 5.759586532 | S63: 0.4527417846 | T63: -28.6931716 | U63: -14.69514732 | V63: 2.132253619 | W63: 29.39029464 | X63: 4.264507239 | Y63: 24.63969138 | Z63: 53.73549276 | AA63: -0.5394241984 | AB63: -0.03969096516 | AC63: -19.28423234 | AD63: -3.3 | AE63: -26.35951824 | AF63: 2.039579995
A64: 4.64 | B64: 14.50759801 | C64: -14.50759801 | Q64: 340 | R64: 5.934119457 | S64: 11.85280208 | T64: -28.8667299 | U64: -13.41332301 | V64: 1.407374589 | W64: 39.21793283 | X64: 4.114888015 | Y64: 13.22231131 | Z64: 53.88511199 | AA64: -0.7954174016 | AB64: -0.02612103034 | AC64: -18.7980287 | AD64: -2.257332946 | AE64: -26.38246568 | AF64: 1.342468285
A65: 5.22 | B65: 14.45688763 | C65: -14.45688763 | Q65: 345 | R65: 6.021385919 | S65: 18.00211089 | T65: -28.92563044 | U65: -11.52238089 | V65: 1.051869506 | W65: 44.51906111 | X65: 4.064111689 | Y65: 7.076502062 | Z65: 53.93588831 | AA65: -1.025004449 | AB65: -0.01950345546 | AC65: -18.62488955 | AD65: -1.708205698 | AE65: -26.39022442 | AF65: 1.002414057
A66: 5.8 | B66: 14.4 | C66: -14.4 | Q66: 350 | R66: 6.108652382 | S66: 23.56801104 | T66: -28.96713364 | U66: -8.563850746 | V66: 0.6995126966 | W66: 49.3172509 | X66: 4.02833307 | Y66: 1.593709632 | Z66: 53.97166693 | AA66: -1.405115926 | AB66: -0.01296110204 | AC66: =IF(t<W66,-CE+COS(R66)*t,S66+COS(AA66)*(t-W66)) -> -18.50026883 | AD66: -1.146077973 | AE66: -26.39568271 | AF66: 0.6661819924
A67: 6.38 | B67: 14.33686158 | C67: -14.33686158 | Q67: =353 -> 353 | R67: 6.16101226 | S67: 26.21171495 | T67: -28.98393258 | U67: =SIGN(SIN(R67))* (BETA*SQRT(1-S67^2/ALPHA^2)) -> -6.288007934 | V67: 0.4891654129 | W67: 51.596306 | X67: 4.013851221 | Y67: =SQRT((S67-CE)^2+V67^2) -> 1.306727184 | Z67: 53.98614878 | AA67: =ATAN((U67-0)/(CE-S67)) -> 1.380427323 | AB67: =-ATAN((V67-0)/(CE-T67)) -> -0.009061066916 | AC67: =IF(t<W67,-CE+COS(R67)*t,S67-COS(AA67)*(t-W67)) -> -18.4491954 | AD67: =IF(t<W67,SIN(R67)*t,U67+ SIN(AA67)*(t-W67)) -> -0.8043376665 | AE67: =IF(t<X67,-CE-COS(R67)*t,T67+COS(AB67)*(t-X67)) -> -26.39788997 | AF67: =IF(t<X67,SIN(R67)*t,V67-SIGN(AB67)*SIN(AB67)*(t-X67)) -> 0.4657324664
A68: 6.96 | B68: 14.26738939 | C68: -14.26738939 | Q68: 356 | R68: 6.213372137 | S68: 28.06062733 | T68: -28.99476131 | U68: =SIGN(SIN(R68))* (BETA*SQRT(1-S68^2/ALPHA^2)) -> -3.710360509 | V68: 0.279340923 | W68: 53.19019597 | X68: 4.004516111 | Y68: =SQRT((S68-CE)^2+V68^2) -> 3.073348501 | Z68: 53.99548389 | AA68: =ATAN((U68-0)/(CE-S68)) -> 0.881063654 | AB68: =-ATAN((V68-0)/(CE-T68)) -> -0.005173435793 | AC68: =IF(t<W68,-CE+COS(R68)*t,S68-COS(AA68)*(t-W68)) -> -18.41607727 | AD68: =IF(t<W68,SIN(R68)*t,U68+ SIN(AA68)*(t-W68)) -> -0.4603927267 | AE68: =IF(t<X68,-CE-COS(R68)*t,T68+COS(AB68)*(t-X68)) -> -26.39931216 | AF68: =IF(t<X68,SIN(R68)*t,V68-SIGN(AB68)*SIN(AB68)*(t-X68)) -> 0.2659134136
A69: 7.54 | B69: 14.19149041 | C69: -14.19149041 | Q69: 358 | R69: 6.248278722 | S69: 28.76241335 | T69: -28.99869104 | U69: =SIGN(SIN(R69))* (BETA*SQRT(1-S69^2/ALPHA^2)) -> -1.877424844 | V69: 0.139637368 | W69: 53.79518392 | X69: 4.001128416 | Y69: =SQRT((S69-CE)^2+V69^2) -> 3.765003692 | Z69: 53.99887158 | AA69: =ATAN((U69-0)/(CE-S69)) -> 0.462843157 | AB69: =-ATAN((V69-0)/(CE-T69)) -> -0.002585934104 | AC69: =IF(t<W69,-CE+COS(R69)*t,S69-COS(AA69)*(t-W69)) -> -18.40402054 | AD69: =IF(t<W69,SIN(R69)*t,U69+ SIN(AA69)*(t-W69)) -> -0.2303366782 | AE69: =IF(t<X69,-CE-COS(R69)*t,T69+COS(AB69)*(t-X69)) -> -26.39982814 | AF69: =IF(t<X69,SIN(R69)*t,V69-SIGN(AB69)*SIN(AB69)*(t-X69)) -> 0.1329168648
A70: 8.12 | B70: =BETA*SQRT(1-A70^2/ALPHA^2) -> 14.10906092 | C70: -14.10906092
A71: =A70+DEX -> 8.7 | B71: 14.01998573 | C71: =-B71 -> -14.01998573
A72: 9.28 | B72: 13.92413732 | C72: -13.92413732
A73: 9.86 | B73: 13.82137475 | C73: -13.82137475
A74: 10.44 | B74: 13.71154258 | C74: -13.71154258
A75: 11.02 | B75: 13.59446946 | C75: -13.59446946
A76: 11.6 | B76: 13.46996659 | C76: -13.46996659
A77: 12.18 | B77: 13.33782591 | C77: -13.33782591
A78: 12.76 | B78: 13.197818 | C78: -13.197818
A79: 13.34 | B79: 13.04968965 | C79: -13.04968965
A80: 13.92 | B80: 12.89316098 | C80: -12.89316098
A81: 14.5 | B81: 12.72792206 | C81: -12.72792206
A82: 15.08 | B82: 12.55362896 | C82: -12.55362896
A83: 15.66 | B83: 12.36989895 | C83: -12.36989895
A84: 16.24 | B84: 12.17630486 | C84: -12.17630486
A85: 16.82 | B85: 11.97236819 | C85: -11.97236819
A86: 17.4 | B86: 11.75755077 | C86: -11.75755077
A87: 17.98 | B87: 11.53124451 | C87: -11.53124451
A88: 18.56 | B88: 11.29275874 | C88: -11.29275874
A89: 19.14 | B89: 11.04130427 | C89: -11.04130427
A90: 19.72 | B90: 10.77597327 | C90: -10.77597327
A91: 20.3 | B91: 10.49571341 | C91: -10.49571341
A92: 20.88 | B92: 10.19929409 | C92: -10.19929409
A93: 21.46 | B93: 9.885261757 | C93: -9.885261757
A94: 22.04 | B94: 9.551879396 | C94: -9.551879396
A95: 22.62 | B95: 9.197043003 | C95: -9.197043003
A96: 23.2 | B96: 8.818163074 | C96: -8.818163074
A97: 23.78 | B97: 8.411991441 | C97: -8.411991441
A98: 24.36 | B98: 7.974358908 | C98: -7.974358908
A99: 24.94 | B99: 7.499759996 | C99: -7.499759996
A100: 25.52 | B100: 6.980658995 | C100: -6.980658995
A101: 26.1 | B101: 6.406246951 | C101: -6.406246951
A102: 26.68 | B102: =BETA*SQRT(1-A102^2/ALPHA^2) -> 5.76 | C102: -5.76
A103: 27.26 | B103: =BETA*SQRT(1-A103^2/ALPHA^2) -> 5.01421978 | C103: -5.01421978
A104: 27.84 | B104: =BETA*SQRT(1-A104^2/ALPHA^2) -> 4.115142768 | C104: -4.115142768
A105: 28.42 | B105: =BETA*SQRT(1-A105^2/ALPHA^2) -> 2.924653826 | C105: -2.924653826
A106: 29 | B106: =BETA*SQRT(1-A106^2/ALPHA^2) -> 1.050294053e-06 | C106: -1.050294053e-06

Sheet CUTS OF LINES
A1: DEX1 | B1: =2*ALPHA1/50 -> 1.52 | H1: ESTIA11 | I1: =-CEeE1 -> -25 | P1: LINE THAT STARTS FROM -C
H2: ESTIA22 | I2: =CEeE1 -> 25 | K2: =CEeE1 -> 25 | L2: 0 | P2: THETAA | Q2: =RADIANS(S2) -> 2.775073511 | R2: RADIANS | S2: 159 | T2: DEGREES
H3: ALPHA1 | I3: 38 | K3: =-CEeE1 -> -25 | L3: 0
H4: CE1 | I4: 25
H5: BETA1 | I5: =SQRT(ALPHA1^2-CEeE1^2) -> 28.61817604
P6: A LINE STARTS FROM -C AT AN ANGLE THETAA
P7: IT HAS PARAMETRIC EQUATIONS if oit passes through points (ξ1,η1) and (ξ2. η2)
Y18: el | Z18: =(xXXXXXX2^2/ALPHA1^2+yYYYYY2^2/BETA1^2-1) -> -0.8875521998
Y19: em | Z19: =(xXXXX1*xXXXXXX2/ALPHA1^2+yYYYY1*yYYYYY2/BETA1^2-1) -> -1
Y20: en | Z20: =xXXXX1^2/ALPHA1^2+yYYYY1^2/BETA1^2-1 -> -0.5671745152
S21: kapa1 | T21: =Z23 -> -1.920676501
P22: x1 | Q22: y1 | S22: kapa2 | T22: =Z24 -> -0.3327120888 | Z22: =SQRT(em^2-el*en) -> 0.7047006537
P23: =-CEeE1 -> -25 | Q23: 0 | T23: x2 | U23: y2 | Z23: =(-em+Z22)/el -> -1.920676501
P24: =(xXXXX1+kapa1*xXXXXXX2)/(1+kapa1) -> 27.153946 | Q24: =(yYYYY1+kapa1*yYYYYY2)/(1+kapa1) -> -20.02002416 | T24: =0 -> 0 | U24: =CEeE1*TAN(THETAA) -> -9.596600876 | Z24: =(-em-Z22)/el -> -0.3327120888
P25: =(xXXXX1+kapa2*xXXXXXX2)/(1+kapa2) -> -37.46508753 | Q25: =(yYYYY1+kapa2*yYYYYY2)/(1+kapa2) -> 4.784898795
R27: IF FISRST POINT ON ELLIPSE AND SECOND POINT THE OTHER FOCUS | S27: el2= | V27: EL1 | W27: =CEeE1^2/ALPHA1^2-1 -> -0.5671745152
R28: L = C²/A-1=-B²/A² | T28: SQRT(M²-0)=M | V28: EM1 | W28: =CEeE1*P30/ALPHA1^2-1 -> -0.5298832063
P29: SECOND POINT | R29: M=CX1/A²-1 | T29: K=2M/L OR K =0 | V29: KAPA3 | W29: =-2*EMMMMM1/W27 -> -1.868501465
L30: SECOND AND THIRD PASS | P30: =P24 -> 27.153946 | Q30: =Q24 -> -20.02002416 | R30: N=0
L31: THROUGH +C | P31: =(P30+CEeE1*W29)/(1+W29) -> 22.51992819 | Q31: =(Q30+0*W29)/(1+W29) -> 23.0512267 | R31: =P31^2/ALPHA1^2+Q31^2/BETA1^2 -> 1
V32: EL2 | W32: =CEeE1^2/ALPHA1^2-1 -> -0.5671745152
P33: THIRD POINT | V33: EM2 | W33: =CEeE1*P34/ALPHA1^2-1 -> -1.648633787
P34: =P25 -> -37.46508753 | Q34: =Q25 -> 4.784898795 | R34: =P34^2/ALPHA1^2+Q34^2/BETA1^2 -> 1 | V34: KAPA4 | W34: =-2*EMMMMM2/ELLLL2 -> -5.813497407
P35: =(P34+CEeE1*W34)/(1+W34) -> 37.97706891 | Q35: =(Q34+0*W34)/(1+W34) -> -0.9940586627 | R35: =P35^2/ALPHA1^2+Q35^2/BETA1^2 -> 1
L36: FOURTH AND FIFTH PASS
L37: THROUGH -C | P37: FOURTH POINT | V37: EL3 | W37: =ELLLL2 -> -0.5671745152
P38: =P31 -> 22.51992819 | Q38: =Q31 -> 23.0512267 | R38: =P38^2/ALPHA1^2+Q38^2/BETA1^2 -> 1 | T38: M=-C*X1/A^2-1 | V38: EM3 | W38: =-CEeE1*P38/ALPHA1^2-1 -> -1.389887953
P39: =(P38+(-CEeE1)*W39)/(1+W39) -> -37.18117838 | Q39: =(Q38+0*W39)/(1+W39) -> -5.908912639 | R39: =P39^2/ALPHA1^2+Q39^2/BETA1^2 -> 1 | V39: KAPA5 | W39: =-2*W38/W37 -> -4.901094517
P41: FIFTH POINT
P42: =P35 -> 37.97706891 | Q42: =Q35 -> -0.9940586627 | R42: =P42^2/ALPHA1^2+Q42^2/BETA1^2 -> 1 | V42: EM4 | W42: =-CEeE1*P42/ALPHA1^2-1 -> -1.65749773
P43: =(P42+W43*(-CEeE1))/(1+W43) -> -37.99902331 | Q43: =Q42/(1+W43) -> 0.2051824887 | R43: =P43^2/ALPHA1^2+Q43^2/BETA1^2 -> 1 | V43: KAPA6 | W43: =-2*W42/W37 -> -5.844753901
A54: X | B54: Y | C54: y2
A55: =-ALPHA1 -> -38 | B55: =BETA1*SQRT(1-A55^2/ALPHA1^2) -> 0 | C55: =-B55 -> 0
A56: =A55+DEXXXX1 -> -36.48 | B56: 8.013089292 | C56: =-B56 -> -8.013089292
A57: -34.96 | B57: 11.21598859 | C57: =-B57 -> -11.21598859
A58: -33.44 | B58: 13.59288049 | C58: -13.59288049
A59: -31.92 | B59: 15.52783307 | C59: -15.52783307
A60: -30.4 | B60: 17.17090563 | C60: -17.17090563
A61: -28.88 | B61: 18.5996129 | C61: -18.5996129
A62: -27.36 | B62: 19.8602719 | C62: -19.8602719
A63: -25.84 | B63: 20.98319327 | C63: -20.98319327
A64: -24.32 | B64: 21.9894884 | C64: -21.9894884
A65: -22.8 | B65: 22.89454083 | C65: -22.89454083
A66: -21.28 | B66: 23.70994728 | C66: -23.70994728
A67: -19.76 | B67: 24.4446804 | C67: -24.4446804
A68: -18.24 | B68: 25.10582403 | C68: -25.10582403
A69: -16.72 | B69: 25.69905835 | C69: -25.69905835
A70: -15.2 | B70: 26.22899159 | C70: -26.22899159
A71: -13.68 | B71: 26.69939325 | C71: -26.69939325
A72: -12.16 | B72: 27.11336202 | C72: -27.11336202
A73: -10.64 | B73: 27.473449 | C73: -27.473449
A74: -9.12 | B74: 27.7817494 | C74: -27.7817494
A75: -7.6 | B75: 28.03997147 | C75: -28.03997147
A76: -6.08 | B76: 28.24948849 | C76: -28.24948849
A77: -4.56 | B77: 28.411378 | C77: -28.411378
A78: -3.04 | B78: 28.52645088 | C78: -28.52645088
A79: -1.52 | B79: 28.59527234 | C79: -28.59527234
A80: 0 | B80: 28.61817604 | C80: -28.61817604
A81: 1.52 | B81: 28.59527234 | C81: -28.59527234
A82: 3.04 | B82: 28.52645088 | C82: -28.52645088
A83: 4.56 | B83: 28.411378 | C83: -28.411378
A84: 6.08 | B84: 28.24948849 | C84: -28.24948849
A85: 7.6 | B85: 28.03997147 | C85: -28.03997147
A86: 9.12 | B86: 27.7817494 | C86: -27.7817494
A87: 10.64 | B87: =BETA1*SQRT(1-A87^2/ALPHA1^2) -> 27.473449 | C87: -27.473449
A88: =A87+DEXXXX1 -> 12.16 | B88: 27.11336202 | C88: -27.11336202
A89: 13.68 | B89: 26.69939325 | C89: -26.69939325
A90: 15.2 | B90: 26.22899159 | C90: -26.22899159
A91: 16.72 | B91: 25.69905835 | C91: -25.69905835
A92: 18.24 | B92: 25.10582403 | C92: -25.10582403
A93: 19.76 | B93: 24.4446804 | C93: -24.4446804
A94: 21.28 | B94: 23.70994728 | C94: -23.70994728
A95: 22.8 | B95: 22.89454083 | C95: -22.89454083
A96: 24.32 | B96: 21.9894884 | C96: -21.9894884
A97: 25.84 | B97: 20.98319327 | C97: -20.98319327
A98: 27.36 | B98: 19.8602719 | C98: -19.8602719
A99: 28.88 | B99: 18.5996129 | C99: -18.5996129
A100: 30.4 | B100: 17.17090563 | C100: -17.17090563
A101: 31.92 | B101: 15.52783307 | C101: -15.52783307
A102: 33.44 | B102: 13.59288049 | C102: -13.59288049
A103: 34.96 | B103: 11.21598859 | C103: -11.21598859
A104: 36.48 | B104: 8.013089292 | C104: -8.013089292
A105: 38 | C105: =-B105 -> 

Sheet REFRACTION
A1: TOTAL TIME | R1: BETA | S1: =IF(AG1<ALPHA2,AG1,ALPHA2-1) -> 73 | AG1: 73
A2: 1 | C2: =AE42 ->  | S2: 30
A3: 2 | C3: 295.9133079
A4: 3 | C4: 295.9353079 | R4: ALPHA | S4: 96
A5: 4 | C5: 295.9508229 | AG5: DEX | AH5: =2*ALPHA2/200 -> 0.96
A6: 5 | C6: 295.9625417 | AI6: =CEEE2 -> 62.3458098 | AJ6: 0
A7: 6 | C7: 295.9715703 | R7: CE | S7: =SQRT(ALPHA2^2-BETA2^2) -> 62.3458098 | AI7: =-CEEE2 -> -62.3458098 | AJ7: 0
A8: 7 | C8: 295.9784815 | R8: INDEX_N | S8: =V8 -> 1.542 | T8: REFRACTION INDEX | V8: =AG8/1000 -> 1.542 | AG8: 1542
A9: 8 | C9: 295.9836072
A10: 9 | C10: 295.987221
A11: 10 | C11: 295.9892317 | R11: e | S11: =CEEE2/ALPHA2 -> 0.6494355188
R12: DIRECTRIX | S12: =ALPHA2/S11 -> 147.82068 | U12: REFRACTION INDEX FROMA A/C | AG12: =DIRECTRIX -> 147.82068 | AH12: 100
A13: TOTAL TIME | R13: A/C | S13: =ALPHA2/CEEE2 -> 1.53979875 | T13: INDEX FOR CORRECT PARALLEL REFRACTED | AG13: =DIRECTRIX -> 147.82068 | AH13: -100
A14: FROM -C
A15: TO DIRECTRIX | U15: =-DIRECTRIX -> -147.82068 | V15: 100
U16: =-DIRECTRIX -> -147.82068 | V16: -100
Q18: x1 | R18: x1 | S18: y1 | T18: dydx | U18: PERPENDICULAR | V18: X2 | AB18: DY1 | AC18: =BETA2/10 -> 7.3
O19: 0 | Q19: =-CEEE2 -> -62.3458098 | R19: =ALPHA2*SQRT(1-S19^2/BETA2^2) -> 0 | S19: =BETA2 -> 73 | T19: =-R19/S19*(BETA2/ALPHA2)^2 -> 0 | V19: =R19+T19*S19 -> 0 | W19: 0 | X19: =R19 -> 0 | Y19: =V19 -> 0 | Z19: =S19 -> 73 | AA19: 1
O20: =O19+1 -> 1 | Q20: -62.3458098 | R20: 41.84542986 | S20: =BETA2-O20*DYYYY1 -> 65.7 | T20: -0.3682866006 | U20: =-1/T20 -> 2.715276631 | V20: 17.6490002 | W20: 0 | X20: 41.84542986 | Y20: =V20 -> 17.6490002 | Z20: 65.7 | AA20: =AA19+1 -> 2
O21: =O20+1 -> 2 | Q21: -62.3458098 | R21: 57.6 | S21: 58.4 | T21: -0.5703125 | U21: =-1/T21 -> 1.753424658 | V21: 24.29375 | W21: 0 | X21: 57.6 | Y21: 24.29375 | Z21: 58.4 | AA21: =AA20+1 -> 3
O22: 3 | Q22: -62.3458098 | R22: 68.55771291 | S22: 51.1 | T22: -0.7757801716 | U22: 1.289024954 | V22: 28.91534615 | W22: 0 | X22: 68.55771291 | Y22: 28.91534615 | Z22: 51.1 | AA22: 4
O23: 4 | Q23: -62.3458098 | R23: 76.8 | S23: 43.8 | T23: -1.013888889 | U23: 0.9863013699 | V23: 32.39166667 | W23: 0 | X23: 76.8 | Y23: 32.39166667 | Z23: 43.8 | AA23: 5
O24: 5 | Q24: -62.3458098 | R24: 83.13843876 | S24: 36.5 | T24: -1.317080302 | U24: 0.7592551485 | V24: 35.06500776 | W24: 0 | X24: 83.13843876 | Y24: 35.06500776 | Z24: 36.5 | AA24: 6
O25: 6 | Q25: -62.3458098 | R25: 87.98545334 | S25: 29.2 | T25: -1.742333467 | U25: 0.5739429442 | V25: 37.1093161 | W25: 0 | X25: 87.98545334 | Y25: 37.1093161 | Z25: 29.2 | AA25: 7
O26: 7 | Q26: -62.3458098 | R26: 91.57816334 | S26: 21.9 | T26: -2.417970892 | U26: 0.4135699082 | V26: 38.62460079 | W26: 0 | X26: 91.57816334 | Y26: 38.62460079 | Z26: 21.9 | AA26: 8
O27: 8 | Q27: -62.3458098 | R27: 94.06040612 | S27: 14.6 | T27: -3.72526565 | U27: 0.2684372321 | V27: 39.67152763 | W27: 0 | X27: 94.06040612 | Y27: 39.67152763 | Z27: 14.6 | AA27: 9
O28: =O27+1 -> 9 | Q28: -62.3458098 | R28: 95.51879396 | S28: 7.3 | T28: -7.566050303 | U28: 0.1321693565 | V28: 40.28662675 | W28: 0 | X28: 95.51879396 | Y28: 40.28662675 | Z28: 7.3 | AA28: 10
Q29: RAYS
Q30: 1 | S30: 2 | U30: 3 | W30: 4 | Y30: 5 | AA30: 6 | AC30: 7 | AE30: 8 | AG30: 9 | AI30: 10
Q31: 1ST RAY | S31: 2ND RAY | U31: 3RD RAY | W31: 4TH RAY | Y31: 5TH RAY | AA31: 6TH RAY | AC31: 7TH RAY | AE31: 8TH RAY | AG31: 9TH RAY | AI31: 10THE RAY
Q32: =-CEEE2 -> -62.3458098 | R32: 0 | S32: =-CEEE2 -> -62.3458098 | T32: 0 | U32: =-CEEE2 -> -62.3458098 | V32: 0 | W32: =-CEEE2 -> -62.3458098 | X32: 0 | Y32: =-CEEE2 -> -62.3458098 | Z32: 0 | AA32: =-CEEE2 -> -62.3458098 | AB32: 0 | AC32: =-CEEE2 -> -62.3458098 | AD32: 0 | AE32: =-CEEE2 -> -62.3458098 | AF32: =0 -> 0 | AG32: =-CEEE2 -> -62.3458098 | AH32: 0 | AI32: =-CEEE2 -> -62.3458098 | AJ32: 0
Q33: =R19 -> 0 | R33: =S19 -> 73 | S33: =X20 -> 41.84542986 | T33: =Z20 -> 65.7 | U33: =X21 -> 57.6 | V33: =Z21 -> 58.4 | W33: =R22 -> 68.55771291 | X33: =S22 -> 51.1 | Y33: =R23 -> 76.8 | Z33: =S23 -> 43.8 | AA33: =R24 -> 83.13843876 | AB33: =S24 -> 36.5 | AC33: =R25 -> 87.98545334 | AD33: =S25 -> 29.2 | AE33: =R26 -> 91.57816334 | AF33: =S26 -> 21.9 | AG33: =R27 -> 94.06040612 | AH33: =S27 -> 14.6 | AI33: =R28 -> 95.51879396 | AJ33: =S28 -> 7.3
Q34: =DIRECTRIX -> 147.82068 | R34: =BETA2 -> 73 | S34: =DIRECTRIX -> 147.82068 | T34: =T33 -> 65.7 | U34: =DIRECTRIX -> 147.82068 | V34: =V33 -> 58.4 | W34: =DIRECTRIX -> 147.82068 | X34: =X33 -> 51.1 | Y34: =DIRECTRIX -> 147.82068 | Z34: =Z33 -> 43.8 | AA34: =DIRECTRIX -> 147.82068 | AB34: =AB33 -> 36.5 | AC34: =DIRECTRIX -> 147.82068 | AD34: =AD33 -> 29.2 | AE34: =DIRECTRIX -> 147.82068 | AF34: =S26 -> 21.9 | AG34: =DIRECTRIX -> 147.82068 | AH34: =AH33 -> 14.6 | AI34: =DIRECTRIX -> 147.82068 | AJ34: =AJ33 -> 7.3
R35: =SQRT((Q34-Q33)^2)+INDEX_N*SQRT((Q33-Q32)^2+(R33-R32)^2) -> 295.85268 | T35: =SQRT((S34-S33)^2)+INDEX_N*SQRT((S33-S32)^2+(T33-T32)^2) -> 295.912501 | V35: =SQRT((U34-U33)^2)+INDEX_N*SQRT((U33-U32)^2+(V33-V32)^2) -> 295.9350232 | X35: =SQRT((W34-W33)^2)+INDEX_N*SQRT((W33-W32)^2+(X33-X32)^2) -> 295.950688 | Z35: =SQRT((Y34-Y33)^2)+INDEX_N*SQRT((Y33-Y32)^2+(Z33-Z32)^2) -> 295.962471 | AB35: =SQRT((AA34-AA33)^2)+INDEX_N*SQRT((AA33-AA32)^2+(AB33-AB32)^2) -> 295.9715322 | AD35: =SQRT((AC34-AC33)^2)+INDEX_N*SQRT((AC33-AC32)^2+(AD33-AD32)^2) -> 295.9784614 | AF35: =SQRT((AE34-AE33)^2)+INDEX_N*SQRT((AE33-AE32)^2+(AF33-AF32)^2) -> 295.9835974 | AH35: =SQRT((AG34-AG33)^2)+INDEX_N*SQRT((AG33-AG32)^2+(AH33-AH32)^2) -> 295.9871459 | AJ35: =SQRT((AI34-AI33)^2)+INDEX_N*SQRT((AI33-AI32)^2+(AJ33-AJ32)^2) -> 295.9892308
F39: PERPENDICULARS
F40: XINITIAL | G40: XFINAL | H40: YINITIAL | I40: YFINAL | Q40: (X1+C)*Y1-Y1*(X1-X2)=Y1*(C+X2) | X40: DIRECTION OF
F41: =V19 -> 0 | G41: =F41+2*(R19-F41) -> 0 | H41: =0 -> 0 | I41: =2*BETA2 -> 146 | N41: ANGLE OF PERPENDICULAR | Q41: EXOTERIKO1 | S41: INCIDENT | T41: DEGREES | U41: SIN REFRACTED | X41: REFRACTED | Y41: DIRECTION | Z41: X1 | AA41: DIRECTRIX | AB41: Y1 | AC41: Y2=Y1+(DIRECTIX-X1)*TAN(GONIA KATHETOY - DIATH) | AE41: TOTAL TIME
A42: X | B42: Y | C42: y2 | F42: =V20 -> 17.6490002 | G42: =F42+2*(R20-F42) -> 66.04185951 | H42: =0 -> 0 | I42: =TAN(O43)*(R20-V20)*2 -> 131.4 | N42: =DEGREES(O42) -> 90 | O42: =IF(V19-R19<>0,ATAN(-1/T19),PI()/2) -> 1.570796327 | P42: =1 -> 1 | Q42: =S19*(CEEE2+V19) -> 4551.244116 | R42: =Q42/SQRT((R19+CEEE2)^2+S19^2)/SQRT((R19-V19)^2+S19^2) -> 0.6494355188 | S42: =ASIN(R42) -> 0.7068418697 | T42: =DEGREES(S42) -> 40.49905592 | U42: =R42*INDEX_N -> 1.00142957 | V42: =IF(ABS(U42)<=1,ASIN(U42),"") ->  | W42: =DEGREES(V42) ->  | X42: =IF(ABS(U42)<=1,O42-ASIN(U42),"") ->  | Y42: =IF(ABS(U42)<=1,TAN(X42),"") ->  | Z42: =R19 -> 0 | AA42: =DIRECTRIX -> 147.82068 | AB42: =IF(ABS(U42)<=1,S19,"") ->  | AC42: =IF(ABS(U42)<=1,AB42+TAN(Y42)*(DIRECTRIX-Z42),"") ->  | AD42: TIMD | AE42: =IF(U42<=1,SQRT((AC42-AB42)^2+(AA42-Z42)^2)+SQRT((Z42+CEEE2)^2+AB42^2)*INDEX_N,"") -> 
A43: =-ALPHA2 -> -96 | B43: =BETA2*SQRT(1-A43^2/ALPHA2^2) -> 0 | C43: =-B43 -> 0 | F43: 24.29375 | G43: 90.90625 | H43: =0 -> 0 | I43: 116.8 | N43: =DEGREES(O43) -> 69.78192373 | O43: =IF(V20-R20<>0,ATAN(-1/T20),PI()/2) -> 1.217924328 | P43: =P42+1 -> 2 | Q43: 5255.659017 | R43: 0.6094199244 | S43: =ASIN(R43) -> 0.6553287494 | T43: =DEGREES(S43) -> 37.54757153 | U43: =R43*INDEX_N -> 0.9397255234 | V43: =IF(ABS(U43)<=1,ASIN(U43),"") -> 1.22182669 | W43: =DEGREES(V43) -> 70.00551264 | X43: =IF(ABS(U43)<=1,O43-(V43),"") -> -0.003902362492 | Y43: -0.003902382301 | Z43: 41.84542986 | AA43: 147.82068 | AB43: 65.7 | AC43: =AB43+Y43*(DIRECTRIX-Z43) -> 65.28644406 | AE43: 295.9133079
A44: =A43+DEXXXX2 -> -95.04 | B44: 10.29791727 | C44: =-B44 -> -10.29791727 | F44: 28.91534615 | G44: 108.2000797 | H44: =0 -> 0 | I44: 102.2 | N44: 60.30334746 | O44: 1.052491963 | P44: =P43+1 -> 3 | Q44: 5059.750292 | R44: 0.5641389563 | S44: 0.5993900517 | T44: =DEGREES(S44) -> 34.34252024 | U44: 0.8699022707 | V44: 1.055004142 | W44: =DEGREES(V44) -> 60.44728471 | X44: =IF(ABS(U44)<=1,O44-ASIN(U44),"") -> -0.002512178829 | Y44: -0.002512184114 | Z44: 57.6 | AA44: 147.82068 | AB44: 58.4 | AC44: 58.17334904 | AE44: 295.9353079
A45: -94.08 | B45: 14.52681658 | C45: -14.52681658 | F45: 32.39166667 | G45: 121.2083333 | H45: =0 -> 0 | I45: 87.6 | N45: 52.19639931 | O45: 0.9109990257 | P45: 4 | Q45: 4663.445069 | R45: 0.5131297148 | S45: 0.5388271968 | T45: 30.87252426 | U45: 0.7912460202 | V45: 0.9128439719 | W45: 52.30210695 | X45: -0.001844946209 | Y45: -0.001844948302 | Z45: 68.55771291 | AA45: 147.82068 | AB45: 51.1 | AC45: 50.95376392 | AE45: 295.9508229
A46: -93.12 | B46: 17.74665884 | C46: -17.74665884 | F46: 35.06500776 | G46: 131.2118698 | H46: =0 -> 0 | I46: 73 | N46: 44.60486296 | O46: 0.778501721 | P46: 5 | Q46: 4149.501469 | R46: 0.4560423779 | S46: 0.4735431294 | T46: 27.13202273 | U46: 0.7032173467 | V46: 0.7799126901 | W46: 44.68570553 | X46: -0.001410969061 | Y46: -0.001410969997 | Z46: 76.8 | AA46: 147.82068 | AB46: 43.8 | AC46: 43.69979195 | AE46: 295.9625417
A47: -92.16 | B47: 20.44 | C47: -20.44 | F47: 37.1093161 | G47: 138.8615906 | H47: =0 -> 0 | I47: 58.4 | N47: 37.20777252 | O47: 0.6493981378 | P47: 6 | Q47: 3555.494841 | R47: 0.3927183104 | S47: 0.4035855153 | T47: 23.1237467 | U47: 0.6055716346 | V47: 0.650483994 | W47: 37.2699875 | X47: -0.00108585618 | Y47: -0.001085856606 | Z47: 83.13843876 | AA47: 147.82068 | AB47: 36.5 | AC47: 36.42976436 | AE47: 295.9715703
A48: -91.2 | B48: 22.79424269 | C48: -22.79424269 | F48: 38.62460079 | G48: 144.5317259 | H48: =0 -> 0 | I48: 43.8 | N48: 29.85336497 | O48: 0.5210395114 | P48: 7 | Q48: 2904.089676 | R48: 0.3232772966 | S48: 0.3291907067 | T48: 18.86123815 | U48: 0.4984935914 | V48: 0.5218601964 | W48: 29.90038675 | X48: -0.000820684967 | Y48: -0.0008206851512 | Z48: 87.98545334 | AA48: 147.82068 | AB48: 29.2 | AC48: 29.15089412 | AE48: 295.9784815
A49: -90.24 | B49: 24.90573428 | C49: -24.90573428 | F49: 39.67152763 | G49: 148.4492846 | H49: =0 -> 0 | I49: 29.2 | N49: 22.46851493 | O49: 0.3921495635 | P49: 8 | Q49: 2211.251992 | R49: 0.2481984649 | S49: 0.2508200833 | T49: 14.37093219 | U49: 0.3827220329 | V49: 0.3927408629 | W49: 22.50239389 | X49: -0.0005912994515 | Y49: -0.0005912995205 | Z49: 91.57816334 | AA49: 147.82068 | AB49: 21.9 | AC49: 21.86674383 | AE49: 295.9836072
A50: -89.28 | B50: 26.83184489 | C50: -26.83184489 | F50: 40.28662675 | G50: 150.7509612 | H50: =0 -> 0 | I50: 14.6 | N50: 15.02608629 | O50: 0.2622546794 | P50: 9 | Q50: 1489.453126 | R50: 0.1683718708 | S50: 0.1691777256 | T50: 9.693169662 | U50: =S50*INDEX_N -> 0.2608720528 | V50: 0.263925425 | W50: 15.12181296 | X50: -0.001670745541 | Y50: -0.001670747096 | Z50: 94.06040612 | AA50: 147.82068 | AB50: 14.6 | AC50: 14.51018018 | AE50: 295.987221
A51: -88.32 | B51: 28.6100402 | C51: -28.6100402 | N51: 7.529107353 | O51: 0.131407713 | P51: 10 | Q51: 749.2167868 | R51: 0.08509543752 | S51: 0.08519847295 | T51: 4.881512921 | U51: =R51*INDEX_N -> 0.1312171647 | V51: 0.1315966607 | W51: 7.539933259 | X51: -0.0001889477024 | Y51: -0.0001889477046 | Z51: 95.51879396 | AA51: 147.82068 | AB51: 7.3 | AC51: 7.290117679 | AE51: 295.9892317
A52: -87.36 | B52: 30.26640216 | C52: -30.26640216 | Q52: 0
A53: -86.4 | B53: 31.81996229 | C53: -31.81996229 | Q53: 124.6916196
A54: -85.44 | B54: 33.2851183 | C54: -33.2851183
A55: -84.48 | B55: 34.67307889 | C55: -34.67307889
A56: -83.52 | B56: 35.99277566 | C56: -35.99277566
A57: -82.56 | B57: 37.2514644 | C57: -37.2514644
A58: -81.6 | B58: 38.4551362 | C58: -38.4551362
A59: -80.64 | B59: 39.6088071 | C59: -39.6088071
A60: -79.68 | B60: 40.71672752 | C60: -40.71672752
A61: -78.72 | B61: 41.78253702 | C61: -41.78253702
A62: -77.76 | B62: 42.80938098 | C62: -42.80938098
A63: -76.8 | B63: 43.8 | C63: -43.8
A64: -75.84 | B64: 44.75679948 | C64: -44.75679948
A65: -74.88 | B65: 45.68190451 | C65: -45.68190451
A66: -73.92 | B66: 46.57720365 | C66: -46.57720365
A67: -72.96 | B67: 47.44438428 | C67: -47.44438428
A68: -72 | B68: 48.28496143 | C68: -48.28496143
A69: -71.04 | B69: 49.10030142 | C69: -49.10030142
A70: -70.08 | B70: 49.89164158 | C70: -49.89164158
A71: -69.12 | B71: 50.66010659 | C71: -50.66010659
A72: -68.16 | B72: 51.40672232 | C72: -51.40672232
A73: -67.2 | B73: 52.13242753 | C73: -52.13242753
A74: -66.24 | B74: 52.8380838 | C74: -52.8380838
A75: -65.28 | B75: =BETA2*SQRT(1-A75^2/ALPHA2^2) -> 53.52448412 | C75: -53.52448412
A76: =A75+DEXXXX2 -> -64.32 | B76: 54.19236016 | C76: -54.19236016
A77: -63.36 | B77: 54.84238872 | C77: -54.84238872
A78: -62.4 | B78: 55.47519716 | C78: -55.47519716
A79: -61.44 | B79: 56.09136832 | C79: -56.09136832
A80: -60.48 | B80: 56.69144468 | C80: -56.69144468
A81: -59.52 | B81: 57.27593212 | C81: -57.27593212
A82: -58.56 | B82: 57.84530318 | C82: -57.84530318
A83: -57.6 | B83: 58.4 | C83: -58.4
A84: -56.64 | B84: 58.94043688 | C84: -58.94043688
A85: -55.68 | B85: 59.46700261 | C85: -59.46700261
A86: -54.72 | B86: 59.98006252 | C86: -59.98006252
A87: -53.76 | B87: 60.47996032 | C87: -60.47996032
A88: -52.8 | B88: 60.96701977 | C88: -60.96701977
A89: -51.84 | B89: 61.4415462 | C89: -61.4415462
A90: -50.88 | B90: 61.90382783 | C90: -61.90382783
A91: -49.92 | B91: 62.35413699 | C91: -62.35413699
A92: -48.96 | B92: 62.79273127 | C92: -62.79273127
A93: -48 | B93: 63.21985448 | C93: -63.21985448
A94: -47.04 | B94: 63.6357376 | C94: -63.6357376
A95: -46.08 | B95: 64.04059962 | C95: -64.04059962
A96: -45.12 | B96: 64.43464829 | C96: -64.43464829
A97: -44.16 | B97: 64.81808081 | C97: -64.81808081
A98: -43.2 | B98: 65.19108451 | C98: -65.19108451
A99: -42.24 | B99: 65.55383742 | C99: -65.55383742
A100: -41.28 | B100: 65.90650878 | C100: -65.90650878
A101: -40.32 | B101: 66.24925962 | C101: -66.24925962
A102: -39.36 | B102: 66.58224313 | C102: -66.58224313
A103: -38.4 | B103: 66.90560515 | C103: -66.90560515
A104: -37.44 | B104: 67.21948453 | C104: -67.21948453
A105: -36.48 | B105: 67.52401351 | C105: -67.52401351
A106: -35.52 | B106: 67.81931804 | C106: -67.81931804
A107: -34.56 | B107: =BETA2*SQRT(1-A107^2/ALPHA2^2) -> 68.10551813 | C107: -68.10551813
A108: =A107+DEXXXX2 -> -33.6 | B108: 68.38272808 | C108: =-B108 -> -68.38272808
A109: -32.64 | B109: 68.6510568 | C109: -68.6510568
A110: -31.68 | B110: 68.91060804 | C110: -68.91060804
A111: -30.72 | B111: 69.16148061 | C111: -69.16148061
A112: -29.76 | B112: 69.40376863 | C112: -69.40376863
A113: -28.8 | B113: 69.6375617 | C113: -69.6375617
A114: -27.84 | B114: 69.86294511 | C114: -69.86294511
A115: -26.88 | B115: 70.08 | C115: -70.08
A116: -25.92 | B116: 70.28880352 | C116: -70.28880352
A117: -24.96 | B117: 70.48942899 | C117: -70.48942899
A118: -24 | B118: 70.68194607 | C118: -70.68194607
A119: -23.04 | B119: 70.86642082 | C119: -70.86642082
A120: -22.08 | B120: 71.0429159 | C120: -71.0429159
A121: -21.12 | B121: 71.21149065 | C121: -71.21149065
A122: -20.16 | B122: 71.37220117 | C122: -71.37220117
A123: -19.2 | B123: 71.52510049 | C123: -71.52510049
A124: -18.24 | B124: 71.67023859 | C124: -71.67023859
A125: -17.28 | B125: 71.80766254 | C125: -71.80766254
A126: -16.32 | B126: 71.93741655 | C126: -71.93741655
A127: -15.36 | B127: 72.05954205 | C127: -72.05954205
A128: -14.4 | B128: 72.17407776 | C128: -72.17407776
A129: -13.44 | B129: 72.28105976 | C129: -72.28105976
A130: -12.48 | B130: 72.38052155 | C130: -72.38052155
A131: -11.52 | B131: 72.47249409 | C131: -72.47249409
A132: -10.56 | B132: 72.55700586 | C132: -72.55700586
A133: -9.6 | B133: 72.63408291 | C133: -72.63408291
A134: -8.64 | B134: 72.70374887 | C134: -72.70374887
A135: -7.68 | B135: 72.76602504 | C135: -72.76602504
A136: -6.72 | B136: 72.82093037 | C136: -72.82093037
A137: -5.76 | B137: 72.86848153 | C137: -72.86848153
A138: -4.8 | B138: 72.9086929 | C138: -72.9086929
A139: -3.84 | B139: =BETA2*SQRT(1-A139^2/ALPHA2^2) -> 72.94157662 | C139: -72.94157662
A140: =A139+DEXXXX2 -> -2.88 | B140: 72.96714261 | C140: -72.96714261
A141: -1.92 | B141: 72.98539854 | C141: -72.98539854
A142: -0.96 | B142: 72.99634991 | C142: -72.99634991
A143: -1.572075803e-13 | B143: 73 | C143: -73
A144: 0.96 | B144: 72.99634991 | C144: -72.99634991
A145: 1.92 | B145: 72.98539854 | C145: -72.98539854
A146: 2.88 | B146: 72.96714261 | C146: -72.96714261
A147: 3.84 | B147: 72.94157662 | C147: -72.94157662
A148: 4.8 | B148: 72.9086929 | C148: -72.9086929
A149: 5.76 | B149: 72.86848153 | C149: -72.86848153
A150: 6.72 | B150: 72.82093037 | C150: -72.82093037
A151: 7.68 | B151: 72.76602504 | C151: -72.76602504
A152: 8.64 | B152: 72.70374887 | C152: -72.70374887
A153: 9.6 | B153: 72.63408291 | C153: -72.63408291
A154: 10.56 | B154: 72.55700586 | C154: -72.55700586
A155: 11.52 | B155: 72.47249409 | C155: -72.47249409
A156: 12.48 | B156: 72.38052155 | C156: -72.38052155
A157: 13.44 | B157: 72.28105976 | C157: -72.28105976
A158: 14.4 | B158: 72.17407776 | C158: -72.17407776
A159: 15.36 | B159: 72.05954205 | C159: -72.05954205
A160: 16.32 | B160: 71.93741655 | C160: -71.93741655
A161: 17.28 | B161: 71.80766254 | C161: -71.80766254
A162: 18.24 | B162: 71.67023859 | C162: -71.67023859
A163: 19.2 | B163: 71.52510049 | C163: -71.52510049
A164: 20.16 | B164: 71.37220117 | C164: -71.37220117
A165: 21.12 | B165: 71.21149065 | C165: -71.21149065
A166: 22.08 | B166: 71.0429159 | C166: -71.0429159
A167: 23.04 | B167: 70.86642082 | C167: -70.86642082
A168: 24 | B168: 70.68194607 | C168: -70.68194607
A169: 24.96 | B169: 70.48942899 | C169: -70.48942899
A170: 25.92 | B170: 70.28880352 | C170: -70.28880352
A171: 26.88 | B171: =BETA2*SQRT(1-A171^2/ALPHA2^2) -> 70.08 | C171: -70.08
A172: =A171+DEXXXX2 -> 27.84 | B172: 69.86294511 | C172: =-B172 -> -69.86294511
A173: 28.8 | B173: 69.6375617 | C173: -69.6375617
A174: 29.76 | B174: 69.40376863 | C174: -69.40376863
A175: 30.72 | B175: 69.16148061 | C175: -69.16148061
A176: 31.68 | B176: 68.91060804 | C176: -68.91060804
A177: 32.64 | B177: 68.6510568 | C177: -68.6510568
A178: 33.6 | B178: 68.38272808 | C178: -68.38272808
A179: 34.56 | B179: 68.10551813 | C179: -68.10551813
A180: 35.52 | B180: 67.81931804 | C180: -67.81931804
A181: 36.48 | B181: 67.52401351 | C181: -67.52401351
A182: 37.44 | B182: 67.21948453 | C182: -67.21948453
A183: 38.4 | B183: 66.90560515 | C183: -66.90560515
A184: 39.36 | B184: 66.58224313 | C184: -66.58224313
A185: 40.32 | B185: 66.24925962 | C185: -66.24925962
A186: 41.28 | B186: 65.90650878 | C186: -65.90650878
A187: 42.24 | B187: 65.55383742 | C187: -65.55383742
A188: 43.2 | B188: 65.19108451 | C188: -65.19108451
A189: 44.16 | B189: 64.81808081 | C189: -64.81808081
A190: 45.12 | B190: 64.43464829 | C190: -64.43464829
A191: 46.08 | B191: 64.04059962 | C191: -64.04059962
A192: 47.04 | B192: 63.6357376 | C192: -63.6357376
A193: 48 | B193: 63.21985448 | C193: -63.21985448
A194: 48.96 | B194: 62.79273127 | C194: -62.79273127
A195: 49.92 | B195: 62.35413699 | C195: -62.35413699
A196: 50.88 | B196: 61.90382783 | C196: -61.90382783
A197: 51.84 | B197: 61.4415462 | C197: -61.4415462
A198: 52.8 | B198: 60.96701977 | C198: -60.96701977
A199: 53.76 | B199: 60.47996032 | C199: -60.47996032
A200: 54.72 | B200: 59.98006252 | C200: -59.98006252
A201: 55.68 | B201: 59.46700261 | C201: -59.46700261
A202: 56.64 | B202: 58.94043688 | C202: -58.94043688
A203: 57.6 | B203: =BETA2*SQRT(1-A203^2/ALPHA2^2) -> 58.4 | C203: -58.4
A204: =A203+DEXXXX2 -> 58.56 | B204: 57.84530318 | C204: -57.84530318
... 39 more rows
